[Event "2026 European Womens Championship"]
[Site "Batumi, GE"]
[Date "2026.05.27"]
[Round "3"]
[White "Sliwicka, Alicja"]
[Black "Ushenina, Anna"]
[Result "1/2-1/2"]
[Board "12"]
[TimeControl "5400+30"]
[WhiteFideId "1150677"]
[BlackFideId "14110911"]
[WhiteElo "2315"]
[BlackElo "2420"]
[WhiteTitle "WGM"]
[BlackTitle "GM"]
[WhiteClock "0:09:35"]
[BlackClock "0:05:22"]
[Variant "Standard"]

1. e4 {[%clk 1:30:57]}  c6 {[%clk 1:30:41]} 2. d4 {[%clk 1:31:20]}  d5 {[%clk 1:30:54]} 3. e5 {[%clk 1:31:44]}  c5 {[%clk 1:30:49]}
4. Nf3 {[%clk 1:31:22]}  cxd4 {[%clk 1:30:59]} 5. Nxd4 {[%clk 1:29:25]}  Nc6 {[%clk 1:30:54]} 6. Nxc6 {[%clk 1:29:35]}  bxc6 {[%clk 1:31:22]}
7. Bd3 {[%clk 1:28:18]}  e6 {[%clk 1:31:10]} 8. O-O {[%clk 1:26:25]}  a5 {[%clk 1:23:43]} 9. c4 {[%clk 1:24:01]}  dxc4 {[%clk 1:06:31]}
10. Bxc4 {[%clk 1:22:43]}  Qxd1 {[%clk 1:05:56]} 11. Rxd1 {[%clk 1:23:10]}  Ne7 {[%clk 1:06:23]} 12. Nc3 {[%clk 1:17:53]}  Nd5 {[%clk 1:03:46]}
13. Na4 {[%clk 1:16:27]}  Ba6 {[%clk 1:02:32]} 14. Bxa6 {[%clk 1:07:39]}  Rxa6 {[%clk 1:02:57]} 15. Rd3 {[%clk 1:03:45]}  Be7 {[%clk 0:55:18]}
16. Rg3 {[%clk 1:01:48]}  Nb6 {[%clk 0:34:29]} 17. Nxb6 {[%clk 0:41:57]}  Rxb6 {[%clk 0:34:56]} 18. Rxg7 {[%clk 0:41:33]}  Rb5 {[%clk 0:34:57]}
19. Rg4 {[%clk 0:30:07]}  Rxe5 {[%clk 0:32:00]} 20. Bd2 {[%clk 0:28:08]}  Rd5 {[%clk 0:27:07]} 21. Bc3 {[%clk 0:28:08]}  Rf8 {[%clk 0:18:41]}
22. Kf1 {[%clk 0:28:22]}  h5 {[%clk 0:16:29]} 23. Ra4 {[%clk 0:23:59]}  Bd8 {[%clk 0:16:51]} 24. Re1 {[%clk 0:20:36]}  Bc7 {[%clk 0:15:43]}
25. Ree4 {[%clk 0:19:56]}  Kd7 {[%clk 0:14:50]} 26. Red4 {[%clk 0:18:03]}  Rb8 {[%clk 0:12:00]} 27. Ke2 {[%clk 0:13:49]}  Bd8 {[%clk 0:09:48]}
28. g3 {[%clk 0:09:21]}  Rbb5 {[%clk 0:08:19]} 29. Rd3 {[%clk 0:06:53]}  Kd6 {[%clk 0:04:53]} 30. Rc4 {[%clk 0:04:27]}  Kd7 {[%clk 0:01:08]}
31. Kd2 {[%clk 0:02:56]}  Kd6 {[%clk 0:01:19]} 32. Kc2 {[%clk 0:02:45]}  Kd7 {[%clk 0:01:25]} 33. a4 {[%clk 0:02:28]}  Rb8 {[%clk 0:01:15]}
34. Rf4 {[%clk 0:01:20]}  f5 {[%clk 0:01:21]} 35. Rc4 {[%clk 0:01:34]}  Kd6 {[%clk 0:01:02]} 36. f4 {[%clk 0:00:57]}  Kd7 {[%clk 0:01:04]}
37. Rc5 {[%clk 0:00:41]}  Bb6 {[%clk 0:01:20]} 38. Rcxd5+ {[%clk 0:00:33]}  exd5 {[%clk 0:01:24]} 39. Rd2 {[%clk 0:00:39]}  Re8 {[%clk 0:01:44]}
40. Be5 {[%clk 0:00:43]}  Bc7 {[%clk 0:01:32]} 41. Bc3 {[%clk 0:27:10]}  Re4 {[%clk 0:27:57]} 42. b3 {[%clk 0:26:27]}  Bb6 {[%clk 0:21:25]}
43. Rg2 {[%clk 0:24:29]}  Ke6 {[%clk 0:09:22]} 44. Bd2 {[%clk 0:24:29]}  c5 {[%clk 0:05:14]} 45. h3 {[%clk 0:21:31]}  Bc7 {[%clk 0:05:10]}
46. g4 {[%clk 0:16:48]}  fxg4 {[%clk 0:03:33]} 47. hxg4 {[%clk 0:17:16]}  Bxf4 {[%clk 0:03:20]} 48. Bxf4 {[%clk 0:15:53]}  Rxf4 {[%clk 0:03:49]}
49. gxh5 {[%clk 0:16:16]}  Rh4 {[%clk 0:04:13]} 50. Rg5 {[%clk 0:15:13]}  c4 {[%clk 0:02:14]} 51. bxc4 {[%clk 0:13:56]}  Rxc4+ {[%clk 0:02:42]}
52. Kb3 {[%clk 0:11:56]}  Rb4+ {[%clk 0:02:57]} 53. Ka3 {[%clk 0:12:11]}  Rh4 {[%clk 0:03:23]} 54. Kb3 {[%clk 0:12:18]}  Kd6 {[%clk 0:02:57]}
55. Rg6+ {[%clk 0:12:09]}  Kc5 {[%clk 0:03:12]} 56. h6 {[%clk 0:12:08]}  Rh3+ {[%clk 0:03:34]} 57. Kc2 {[%clk 0:10:45]}  Kc4 {[%clk 0:03:44]}
58. Rc6+ {[%clk 0:10:30]}  Kd4 {[%clk 0:04:06]} 59. Ra6 {[%clk 0:09:20]}  Rh2+ {[%clk 0:04:23]} 60. Kb3 {[%clk 0:09:01]}  Ke4 {[%clk 0:04:32]}
61. Rxa5 {[%clk 0:09:16]}  Rxh6 {[%clk 0:04:49]} 62. Ra8 {[%clk 0:09:21]}  d4 {[%clk 0:05:05]} 63. Re8+ {[%clk 0:09:38]}  Kd3 {[%clk 0:05:21]}
64. a5 {[%clk 0:09:28]}  Kd2 {[%clk 0:05:06]} 65. Rd8 {[%clk 0:08:24]}  d3 {[%clk 0:05:21]} 66. Kc4 {[%clk 0:08:07]}  Rh4+ {[%clk 0:05:14]}
67. Kb5 {[%clk 0:08:12]}  Rh1 {[%clk 0:03:36]} 68. a6 {[%clk 0:08:11]}  Ra1 {[%clk 0:03:55]} 69. Kb6 {[%clk 0:08:22]}  Ke2 {[%clk 0:03:52]}
70. a7 {[%clk 0:08:24]}  d2 {[%clk 0:04:14]} 71. Kb7 {[%clk 0:08:24]}  d1=Q {[%clk 0:04:26]} 72. Rxd1 {[%clk 0:08:48]}  Kxd1 {[%clk 0:04:54]}
73. a8=Q {[%clk 0:09:11]}  Rxa8 {[%clk 0:05:22]} 74. Kxa8 {[%clk 0:09:35]} 1/2-1/2

[Event "2026 European Womens Championship"]
[Site "Batumi, GE"]
[Date "2026.05.27"]
[Round "3"]
[White "Khotenashvili, Bella"]
[Black "Zimina, Olga"]
[Result "0-1"]
[Board "13"]
[TimeControl "5400+30"]
[WhiteFideId "13602640"]
[BlackFideId "4132190"]
[WhiteElo "2415"]
[BlackElo "2290"]
[WhiteTitle "GM"]
[BlackTitle "IM"]
[WhiteClock "0:30:28"]
[BlackClock "0:17:55"]
[Variant "Standard"]

1. c4 {[%clk 1:30:22]}  e5 {[%clk 1:30:42]} 2. Nc3 {[%clk 1:29:08]}  Bb4 {[%clk 1:31:04]} 3. Nd5 {[%clk 1:27:11]}  Bc5 {[%clk 1:31:13]}
4. e3 {[%clk 1:26:08]}  Nc6 {[%clk 1:28:23]} 5. Ne2 {[%clk 1:17:07]}  a6 {[%clk 1:25:44]} 6. g3 {[%clk 1:03:17]}  d6 {[%clk 1:21:07]}
7. Bg2 {[%clk 1:01:48]}  Ba7 {[%clk 1:20:15]} 8. b4 {[%clk 0:58:37]}  Nge7 {[%clk 1:18:56]} 9. Bb2 {[%clk 0:55:30]}  h5 {[%clk 1:16:18]}
10. h4 {[%clk 0:41:38]}  Bg4 {[%clk 0:55:54]} 11. Qb3 {[%clk 0:38:45]}  Qd7 {[%clk 0:54:54]} 12. Nec3 {[%clk 0:37:18]}  Nd8 {[%clk 0:48:10]}
13. Ne4 {[%clk 0:30:45]}  Rh6 {[%clk 0:42:24]} 14. Rc1 {[%clk 0:25:17]}  c6 {[%clk 0:34:25]} 15. Nxe7 {[%clk 0:24:59]}  Qxe7 {[%clk 0:34:49]}
16. c5 {[%clk 0:19:44]}  d5 {[%clk 0:34:29]} 17. Nd6+ {[%clk 0:20:08]}  Kf8 {[%clk 0:34:44]} 18. f3 {[%clk 0:09:00]}  Bd7 {[%clk 0:32:14]}
19. Qc3 {[%clk 0:08:29]}  f6 {[%clk 0:19:00]} 20. Qd3 {[%clk 0:07:45]}  a5 {[%clk 0:11:02]} 21. b5 {[%clk 0:06:18]}  Bb8 {[%clk 0:09:18]}
22. Ba3 {[%clk 0:05:26]}  Nf7 {[%clk 0:07:52]} 23. bxc6 {[%clk 0:03:28]}  bxc6 {[%clk 0:08:02]} 24. Nxf7 {[%clk 0:01:23]}  e4 {[%clk 0:04:49]}
25. fxe4 {[%clk 0:01:48]}  Bxg3+ {[%clk 0:05:04]} 26. Kd1 {[%clk 0:01:04]}  dxe4 {[%clk 0:04:56]} 27. Bxe4 {[%clk 0:00:50]}  Qxf7 {[%clk 0:03:52]}
28. Rg1 {[%clk 0:00:37]}  Bg4+ {[%clk 0:04:10]} 29. Kc2 {[%clk 0:01:01]}  Qxa2+ {[%clk 0:04:32]} 30. Bb2 {[%clk 0:01:27]}  Rb8 {[%clk 0:04:01]}
31. Rb1 {[%clk 0:01:06]}  Be5 {[%clk 0:04:08]} 32. Rxg4 {[%clk 0:00:45]}  hxg4 {[%clk 0:04:26]} 33. Kd1 {[%clk 0:00:43]}  Rxh4 {[%clk 0:03:40]}
34. Qd7 {[%clk 0:00:46]}  Qa4+ {[%clk 0:03:49]} 35. Bc2 {[%clk 0:01:05]}  Rh1+ {[%clk 0:03:36]} 36. Ke2 {[%clk 0:01:32]}  Qc4+ {[%clk 0:01:26]}
37. Bd3 {[%clk 0:01:33]}  Rh2+ {[%clk 0:01:49]} 38. Ke1 {[%clk 0:01:00]}  Qd5 {[%clk 0:00:36]} 39. Qxd5 {[%clk 0:00:52]}  cxd5 {[%clk 0:01:04]}
40. c6 {[%clk 0:01:13]}  Rh1+ {[%clk 0:01:11]} 41. Bf1 {[%clk 0:01:11]}  g3 {[%clk 0:21:14]} 42. Ke2 {[%clk 0:30:28]}  Ke8 {[%clk 0:17:55]} 0-1

[Event "2026 European Womens Championship"]
[Site "Batumi, GE"]
[Date "2026.05.27"]
[Round "3"]
[White "Unuk, Laura"]
[Black "Arabidze, Meri"]
[Result "1/2-1/2"]
[Board "14"]
[TimeControl "5400+30"]
[WhiteFideId "14609215"]
[BlackFideId "13604040"]
[WhiteElo "2289"]
[BlackElo "2409"]
[WhiteTitle "IM"]
[BlackTitle "IM"]
[WhiteClock "0:12:45"]
[BlackClock "0:29:28"]
[Variant "Standard"]

1. d4 {[%clk 1:29:01]}  d5 {[%clk 1:30:49]} 2. c4 {[%clk 1:29:06]}  e6 {[%clk 1:31:12]} 3. Nc3 {[%clk 1:28:23]}  h6 {[%clk 1:31:31]}
4. cxd5 {[%clk 1:22:29]}  exd5 {[%clk 1:31:56]} 5. Bf4 {[%clk 1:22:41]}  Nf6 {[%clk 1:32:01]} 6. e3 {[%clk 1:22:46]}  Bd6 {[%clk 1:32:17]}
7. Bxd6 {[%clk 1:13:20]}  Qxd6 {[%clk 1:31:49]} 8. Bd3 {[%clk 1:13:45]}  O-O {[%clk 1:32:06]} 9. Qc2 {[%clk 1:03:36]}  Nc6 {[%clk 1:29:02]}
10. a3 {[%clk 1:01:35]}  a6 {[%clk 1:27:32]} 11. h3 {[%clk 1:00:33]}  Ne7 {[%clk 1:24:45]} 12. Nf3 {[%clk 0:59:49]}  b6 {[%clk 1:22:09]}
13. b4 {[%clk 0:55:32]}  c5 {[%clk 1:08:52]} 14. bxc5 {[%clk 0:52:19]}  bxc5 {[%clk 1:09:20]} 15. dxc5 {[%clk 0:52:39]}  Qxc5 {[%clk 1:09:47]}
16. O-O {[%clk 0:49:15]}  Bd7 {[%clk 1:10:07]} 17. Ne4 {[%clk 0:36:51]}  Nxe4 {[%clk 1:09:01]} 18. Bxe4 {[%clk 0:37:16]}  Rfc8 {[%clk 0:53:37]}
19. Qxc5 {[%clk 0:33:07]}  Rxc5 {[%clk 0:54:02]} 20. Bd3 {[%clk 0:33:32]}  Rc3 {[%clk 0:51:52]} 21. Ne5 {[%clk 0:30:42]}  Bb5 {[%clk 0:48:31]}
22. Bxb5 {[%clk 0:20:23]}  axb5 {[%clk 0:47:07]} 23. Rfb1 {[%clk 0:20:47]}  f6 {[%clk 0:39:44]} 24. Nf3 {[%clk 0:20:18]}  Rcxa3 {[%clk 0:39:00]}
25. Rxa3 {[%clk 0:20:21]}  Rxa3 {[%clk 0:39:28]} 26. Nd4 {[%clk 0:14:38]}  h5 {[%clk 0:37:55]} 27. Rxb5 {[%clk 0:12:49]}  Ra7 {[%clk 0:38:05]}
28. g4 {[%clk 0:12:04]}  hxg4 {[%clk 0:37:00]} 29. hxg4 {[%clk 0:12:29]}  g5 {[%clk 0:30:05]} 30. Kg2 {[%clk 0:12:54]}  Kf7 {[%clk 0:29:28]}
31. Kg3 {[%clk 0:12:45]} 1/2-1/2

[Event "2026 European Womens Championship"]
[Site "Batumi, GE"]
[Date "2026.05.27"]
[Round "3"]
[White "Wagner, Dinara"]
[Black "Radeva, Viktoria"]
[Result "1-0"]
[Board "15"]
[TimeControl "5400+30"]
[WhiteFideId "24157570"]
[BlackFideId "2915405"]
[WhiteElo "2408"]
[BlackElo "2242"]
[WhiteTitle "IM"]
[BlackTitle "WGM"]
[WhiteClock "0:42:13"]
[BlackClock "0:23:19"]
[Variant "Standard"]

1. d4 {[%clk 1:30:57]}  d5 {[%clk 1:30:39]} 2. c4 {[%clk 1:31:23]}  e6 {[%clk 1:31:04]} 3. Nc3 {[%clk 1:31:50]}  Nf6 {[%clk 1:31:03]}
4. cxd5 {[%clk 1:32:11]}  exd5 {[%clk 1:31:28]} 5. Bg5 {[%clk 1:32:38]}  c6 {[%clk 1:31:23]} 6. e3 {[%clk 1:33:03]}  Bd6 {[%clk 1:31:33]}
7. Bd3 {[%clk 1:33:11]}  O-O {[%clk 1:31:35]} 8. Nf3 {[%clk 1:33:36]}  Re8 {[%clk 1:31:19]} 9. O-O {[%clk 1:34:00]}  Bg4 {[%clk 1:31:20]}
10. Qb3 {[%clk 1:34:01]}  Na6 {[%clk 1:31:38]} 11. Rfe1 {[%clk 1:34:09]}  Nc7 {[%clk 1:22:12]} 12. Ne5 {[%clk 1:31:21]}  Bxe5 {[%clk 1:18:35]}
13. dxe5 {[%clk 1:31:03]}  Rxe5 {[%clk 1:18:32]} 14. Bxf6 {[%clk 1:30:57]}  Qxf6 {[%clk 1:06:54]} 15. Qxb7 {[%clk 1:29:54]}  Qd6 {[%clk 1:04:08]}
16. Rac1 {[%clk 1:29:11]}  Ree8 {[%clk 0:56:00]} 17. Qb3 {[%clk 1:28:42]}  Bd7 {[%clk 0:42:41]} 18. Qc2 {[%clk 1:28:31]}  g6 {[%clk 0:41:56]}
19. Na4 {[%clk 1:23:17]}  Ne6 {[%clk 0:41:16]} 20. Red1 {[%clk 1:22:22]}  Rab8 {[%clk 0:39:57]} 21. a3 {[%clk 1:05:02]}  a5 {[%clk 0:35:43]}
22. Qc3 {[%clk 0:57:19]}  Rec8 {[%clk 0:32:15]} 23. Qf6 {[%clk 0:56:02]}  c5 {[%clk 0:28:07]} 24. Nc3 {[%clk 0:55:32]}  Bc6 {[%clk 0:27:49]}
25. Bc4 {[%clk 0:45:10]}  Qd8 {[%clk 0:21:32]} 26. Qxd8+ {[%clk 0:43:57]}  Rxd8 {[%clk 0:21:45]} 27. Nxd5 {[%clk 0:44:18]}  Bxd5 {[%clk 0:21:41]}
28. Rxd5 {[%clk 0:44:44]}  Rxd5 {[%clk 0:21:17]} 29. Bxd5 {[%clk 0:45:11]}  Rxb2 {[%clk 0:21:42]} 30. h4 {[%clk 0:44:08]}  a4 {[%clk 0:18:51]}
31. Rc4 {[%clk 0:43:45]}  Nc7 {[%clk 0:17:56]} 32. Bf3 {[%clk 0:32:57]}  Nb5 {[%clk 0:15:03]} 33. Rxa4 {[%clk 0:33:21]}  Ra2 {[%clk 0:10:59]}
34. Ra5 {[%clk 0:30:49]}  Nd6 {[%clk 0:08:57]} 35. Rxc5 {[%clk 0:31:15]}  Rxa3 {[%clk 0:08:28]} 36. g4 {[%clk 0:30:19]}  Kg7 {[%clk 0:07:44]}
37. Rc7 {[%clk 0:30:07]}  Rd3 {[%clk 0:06:16]} 38. Kf1 {[%clk 0:27:01]}  Rd2 {[%clk 0:05:43]} 39. Ke1 {[%clk 0:26:59]}  Rb2 {[%clk 0:05:43]}
40. Bd5 {[%clk 0:25:59]}  Rb5 {[%clk 0:01:33]} 41. e4 {[%clk 0:24:07]}  Rb4 {[%clk 0:27:50]} 42. f3 {[%clk 0:49:48]}  Kf6 {[%clk 0:27:08]}
43. Rd7 {[%clk 0:40:03]}  Ke5 {[%clk 0:22:01]} 44. f4+ {[%clk 0:40:30]}  Kxf4 {[%clk 0:22:24]} 45. Rxd6 {[%clk 0:40:58]}  Kxg4 {[%clk 0:22:43]}
46. Rf6 {[%clk 0:41:25]}  Kxh4 {[%clk 0:22:49]} 47. Rxf7 {[%clk 0:41:54]}  h5 {[%clk 0:23:11]} 48. e5 {[%clk 0:41:45]}  Rb5 {[%clk 0:23:19]}
49. Rd7 {[%clk 0:42:13]} 1-0

[Event "2026 European Womens Championship"]
[Site "Batumi, GE"]
[Date "2026.05.27"]
[Round "3"]
[White "Krasteva, Beloslava"]
[Black "Salimova, Nurgyul"]
[Result "0-1"]
[Board "16"]
[TimeControl "5400+30"]
[WhiteFideId "2922029"]
[BlackFideId "2915138"]
[WhiteElo "2285"]
[BlackElo "2404"]
[WhiteTitle "WGM"]
[BlackTitle "IM"]
[WhiteClock "0:00:59"]
[BlackClock "0:06:45"]
[Variant "Standard"]

1. d4 {[%clk 1:30:56]}  Nf6 {[%clk 1:29:23]} 2. c4 {[%clk 1:31:09]}  c5 {[%clk 1:29:39]} 3. d5 {[%clk 1:30:43]}  b5 {[%clk 1:29:38]}
4. Nf3 {[%clk 1:30:37]}  b4 {[%clk 1:29:01]} 5. a3 {[%clk 1:29:58]}  g6 {[%clk 1:27:32]} 6. Be3 {[%clk 1:24:42]}  bxa3 {[%clk 1:22:36]}
7. Rxa3 {[%clk 1:19:50]}  d6 {[%clk 1:22:19]} 8. Nc3 {[%clk 1:19:03]}  Bg7 {[%clk 1:22:04]} 9. Bd2 {[%clk 1:10:05]}  O-O {[%clk 1:18:47]}
10. e4 {[%clk 1:09:32]}  e6 {[%clk 1:13:26]} 11. Be2 {[%clk 1:04:21]}  exd5 {[%clk 1:03:25]} 12. exd5 {[%clk 1:04:45]}  Na6 {[%clk 0:56:26]}
13. O-O {[%clk 1:04:36]}  Nb4 {[%clk 0:54:27]} 14. Na2 {[%clk 0:34:32]}  Nxa2 {[%clk 0:45:30]} 15. Rxa2 {[%clk 0:34:57]}  Re8 {[%clk 0:43:56]}
16. Bd3 {[%clk 0:29:33]}  Bg4 {[%clk 0:39:09]} 17. h3 {[%clk 0:29:24]}  Bxf3 {[%clk 0:37:34]} 18. Qxf3 {[%clk 0:29:49]}  Nd7 {[%clk 0:37:12]}
19. Bc2 {[%clk 0:28:40]}  Ne5 {[%clk 0:34:24]} 20. Qf4 {[%clk 0:28:15]}  Qe7 {[%clk 0:28:40]} 21. Rfa1 {[%clk 0:25:12]}  Reb8 {[%clk 0:27:26]}
22. Bc3 {[%clk 0:23:45]}  f5 {[%clk 0:20:25]} 23. Ra6 {[%clk 0:20:33]}  Rf8 {[%clk 0:19:24]} 24. h4 {[%clk 0:15:51]}  Rf7 {[%clk 0:17:58]}
25. Re1 {[%clk 0:14:33]}  Qf8 {[%clk 0:14:04]} 26. Bd2 {[%clk 0:11:48]}  Rb8 {[%clk 0:13:32]} 27. b3 {[%clk 0:11:26]}  Rb6 {[%clk 0:12:15]}
28. Ra2 {[%clk 0:09:04]}  Ng4 {[%clk 0:10:45]} 29. Bd1 {[%clk 0:07:13]}  Bd4 {[%clk 0:08:36]} 30. Be3 {[%clk 0:02:33]}  Nxe3 {[%clk 0:08:20]}
31. fxe3 {[%clk 0:02:58]}  Be5 {[%clk 0:08:12]} 32. Qf3 {[%clk 0:02:38]}  Rbb7 {[%clk 0:07:20]} 33. Qh3 {[%clk 0:01:41]}  Rbe7 {[%clk 0:07:28]}
34. Kh1 {[%clk 0:01:16]}  Bc3 {[%clk 0:07:11]} 35. Rf1 {[%clk 0:01:08]}  Re4 {[%clk 0:03:03]} 36. Re2 {[%clk 0:00:39]}  Qh6 {[%clk 0:02:54]}
37. Rf4 {[%clk 0:00:42]}  Rfe7 {[%clk 0:02:29]} 38. g4 {[%clk 0:00:36]}  fxg4 {[%clk 0:00:36]} 39. Qxg4 {[%clk 0:00:40]}  Rxf4 {[%clk 0:00:41]}
40. exf4 {[%clk 0:00:35]}  Rf7 {[%clk 0:00:32]} 41. Rf2 {[%clk 0:24:36]}  Be1 {[%clk 0:20:43]} 42. Rf1 {[%clk 0:23:30]}  Qxh4+ {[%clk 0:18:27]}
43. Kg2 {[%clk 0:20:05]}  Kg7 {[%clk 0:18:24]} 44. Qxh4 {[%clk 0:15:55]}  Bxh4 {[%clk 0:18:40]} 45. Bc2 {[%clk 0:14:16]}  Re7 {[%clk 0:17:09]}
46. Kf3 {[%clk 0:14:08]}  Bf6 {[%clk 0:15:14]} 47. Be4 {[%clk 0:10:57]}  Bd4 {[%clk 0:15:32]} 48. Re1 {[%clk 0:11:05]}  Rf7 {[%clk 0:14:42]}
49. Kg3 {[%clk 0:07:13]}  g5 {[%clk 0:13:39]} 50. Rh1 {[%clk 0:07:06]}  gxf4+ {[%clk 0:13:25]} 51. Kf3 {[%clk 0:07:29]}  Kg8 {[%clk 0:10:02]}
52. Rh6 {[%clk 0:07:08]}  Be5 {[%clk 0:10:03]} 53. Re6 {[%clk 0:06:16]}  Rg7 {[%clk 0:09:36]} 54. Ke2 {[%clk 0:04:49]}  Rb7 {[%clk 0:06:00]}
55. Bc2 {[%clk 0:03:14]}  a5 {[%clk 0:06:17]} 56. Re8+ {[%clk 0:02:26]}  Kg7 {[%clk 0:06:36]} 57. Ra8 {[%clk 0:02:50]}  h5 {[%clk 0:06:22]}
58. Rxa5 {[%clk 0:03:08]}  h4 {[%clk 0:06:05]} 59. Rb5 {[%clk 0:01:55]}  Ra7 {[%clk 0:06:18]} 60. Bf5 {[%clk 0:01:55]}  Kf6 {[%clk 0:05:55]}
61. Be6 {[%clk 0:02:00]}  Rh7 {[%clk 0:05:42]} 62. Bh3 {[%clk 0:02:19]}  Rg7 {[%clk 0:06:01]} 63. Rb8 {[%clk 0:01:47]}  f3+ {[%clk 0:06:16]}
64. Kf1 {[%clk 0:00:36]}  Rg3 {[%clk 0:06:37]} 65. Be6 {[%clk 0:01:00]}  Bd4 {[%clk 0:06:20]} 66. Rg8 {[%clk 0:00:33]}  Rxg8 {[%clk 0:06:24]}
67. Bxg8 {[%clk 0:00:59]}  h3 {[%clk 0:06:45]} 0-1

[Event "2026 European Womens Championship"]
[Site "Batumi, GE"]
[Date "2026.05.27"]
[Round "3"]
[White "Badelka, Olga"]
[Black "Zherebtsova, Alexandra"]
[Result "0-1"]
[Board "17"]
[TimeControl "5400+30"]
[WhiteFideId "13509926"]
[BlackFideId "24129518"]
[WhiteElo "2392"]
[BlackElo "2242"]
[WhiteTitle "IM"]
[BlackTitle "FM"]
[WhiteClock "0:07:13"]
[BlackClock "0:01:28"]
[Variant "Standard"]

1. d4 {[%clk 1:30:57]}  Nf6 {[%clk 1:29:04]} 2. Nf3 {[%clk 1:31:19]}  d5 {[%clk 1:28:17]} 3. c3 {[%clk 1:31:38]}  Bf5 {[%clk 1:19:25]}
4. Qb3 {[%clk 1:31:54]}  Qc8 {[%clk 1:17:51]} 5. c4 {[%clk 1:32:00]}  dxc4 {[%clk 1:08:27]} 6. Qxc4 {[%clk 1:31:49]}  Nbd7 {[%clk 1:06:36]}
7. Nc3 {[%clk 1:31:11]}  c6 {[%clk 0:54:57]} 8. g3 {[%clk 1:29:03]}  h6 {[%clk 0:50:56]} 9. Bg2 {[%clk 1:28:57]}  e6 {[%clk 0:50:13]}
10. O-O {[%clk 1:23:23]}  Be7 {[%clk 0:48:11]} 11. a4 {[%clk 1:10:35]}  O-O {[%clk 0:37:54]} 12. Qb3 {[%clk 1:06:04]}  Rd8 {[%clk 0:34:04]}
13. a5 {[%clk 1:02:22]}  Nb8 {[%clk 0:32:46]} 14. Bf4 {[%clk 0:59:12]}  Na6 {[%clk 0:29:15]} 15. Rfc1 {[%clk 0:53:34]}  Bh7 {[%clk 0:24:50]}
16. Ra4 {[%clk 0:45:37]}  Nd5 {[%clk 0:19:51]} 17. Nxd5 {[%clk 0:43:41]}  exd5 {[%clk 0:20:16]} 18. Ne5 {[%clk 0:43:48]}  f6 {[%clk 0:12:51]}
19. Nd3 {[%clk 0:43:28]}  g5 {[%clk 0:11:33]} 20. Bd2 {[%clk 0:42:27]}  Kg7 {[%clk 0:10:02]} 21. Nc5 {[%clk 0:34:26]}  Bxc5 {[%clk 0:09:53]}
22. dxc5 {[%clk 0:34:52]}  Rb8 {[%clk 0:09:22]} 23. h4 {[%clk 0:28:42]}  Re8 {[%clk 0:09:08]} 24. Bf3 {[%clk 0:17:53]}  Qe6 {[%clk 0:06:43]}
25. Be3 {[%clk 0:13:01]}  Nc7 {[%clk 0:06:11]} 26. Rb4 {[%clk 0:09:50]}  Re7 {[%clk 0:03:24]} 27. Rd1 {[%clk 0:04:07]}  Na6 {[%clk 0:03:07]}
28. Ra4 {[%clk 0:04:07]}  Bf5 {[%clk 0:02:16]} 29. Qc3 {[%clk 0:04:15]}  Nc7 {[%clk 0:01:51]} 30. Qd2 {[%clk 0:03:22]}  Nb5 {[%clk 0:01:25]}
31. a6 {[%clk 0:02:18]}  Rd7 {[%clk 0:01:18]} 32. Qc1 {[%clk 0:01:06]}  bxa6 {[%clk 0:00:35]} 33. hxg5 {[%clk 0:01:14]}  hxg5 {[%clk 0:00:58]}
34. Rxa6 {[%clk 0:01:35]}  Rh8 {[%clk 0:00:58]} 35. Bd4 {[%clk 0:01:28]}  Kg6 {[%clk 0:01:14]} 36. Qe3 {[%clk 0:01:29]}  Be4 {[%clk 0:01:12]}
37. Bg2 {[%clk 0:00:54]}  Rc7 {[%clk 0:00:34]} 38. f3 {[%clk 0:01:05]}  Bf5 {[%clk 0:01:01]} 39. g4 {[%clk 0:00:57]}  Qxe3+ {[%clk 0:01:26]}
40. Bxe3 {[%clk 0:01:25]}  Bc8 {[%clk 0:01:19]} 41. Ra4 {[%clk 0:25:22]}  Re7 {[%clk 0:22:20]} 42. Kf2 {[%clk 0:25:28]}  Rhe8 {[%clk 0:20:20]}
43. Rd3 {[%clk 0:25:54]}  d4 {[%clk 0:15:48]} 44. Bxd4 {[%clk 0:26:20]}  Rxe2+ {[%clk 0:15:48]} 45. Kg3 {[%clk 0:26:44]}  f5 {[%clk 0:08:46]}
46. Bc3 {[%clk 0:21:33]}  f4+ {[%clk 0:06:08]} 47. Kh2 {[%clk 0:21:58]}  Rc2 {[%clk 0:04:08]} 48. Rd2 {[%clk 0:15:00]}  Rxd2 {[%clk 0:02:38]}
49. Bxd2 {[%clk 0:15:26]}  Re2 {[%clk 0:02:46]} 50. Bc3 {[%clk 0:14:03]}  Bxg4 {[%clk 0:02:04]} 51. Kg1 {[%clk 0:14:00]}  Be6 {[%clk 0:01:30]}
52. Bh8 {[%clk 0:06:51]}  Bd5 {[%clk 0:00:48]} 53. Kf1 {[%clk 0:06:53]}  Re8 {[%clk 0:00:54]} 54. Bd4 {[%clk 0:07:16]}  Nxd4 {[%clk 0:00:49]}
55. Rxd4 {[%clk 0:07:43]}  Re3 {[%clk 0:00:50]} 56. Kf2 {[%clk 0:07:32]}  Rb3 {[%clk 0:01:12]} 57. Rd2 {[%clk 0:07:57]}  Kf6 {[%clk 0:01:26]}
58. Re2 {[%clk 0:05:44]}  g4 {[%clk 0:01:18]} 59. Rd2 {[%clk 0:05:32]}  g3+ {[%clk 0:01:27]} 60. Kg1 {[%clk 0:05:44]}  Ke5 {[%clk 0:00:51]}
61. Re2+ {[%clk 0:06:08]}  Kd4 {[%clk 0:01:00]} 62. Re8 {[%clk 0:06:04]}  Re3 {[%clk 0:01:00]} 63. Rf8 {[%clk 0:06:21]}  Re1+ {[%clk 0:01:00]}
64. Bf1 {[%clk 0:06:48]}  Bxf3 {[%clk 0:01:06]} 65. Rxf4+ {[%clk 0:07:13]}  Ke3 {[%clk 0:01:19]} 66. Rf7 {[%clk 0:06:51]}  g2 {[%clk 0:01:17]}
67. Re7+ {[%clk 0:07:13]}  Be4 {[%clk 0:01:28]} 0-1

[Event "2026 European Womens Championship"]
[Site "Batumi, GE"]
[Date "2026.05.27"]
[Round "3"]
[White "Buksa, Nataliya"]
[Black "Charkhalashvili, Inga"]
[Result "0-1"]
[Board "18"]
[TimeControl "5400+30"]
[WhiteFideId "14123622"]
[BlackFideId "13601431"]
[WhiteElo "2392"]
[BlackElo "2235"]
[WhiteTitle "IM"]
[BlackTitle "WGM"]
[WhiteClock "0:12:15"]
[BlackClock "0:29:01"]
[Variant "Standard"]

1. e4 {[%clk 1:29:35]}  c6 {[%clk 1:30:55]} 2. Nc3 {[%clk 1:29:32]}  d5 {[%clk 1:31:18]} 3. Nf3 {[%clk 1:29:54]}  Bg4 {[%clk 1:31:39]}
4. h3 {[%clk 1:30:08]}  Bxf3 {[%clk 1:31:56]} 5. Qxf3 {[%clk 1:30:34]}  e6 {[%clk 1:32:17]} 6. d4 {[%clk 1:30:32]}  dxe4 {[%clk 1:27:58]}
7. Qxe4 {[%clk 1:30:31]}  Nf6 {[%clk 1:28:21]} 8. Qd3 {[%clk 1:30:59]}  Qc7 {[%clk 1:27:44]} 9. Bd2 {[%clk 1:30:27]}  Nbd7 {[%clk 1:28:02]}
10. O-O-O {[%clk 1:30:24]}  O-O-O {[%clk 1:26:56]} 11. g4 {[%clk 1:17:05]}  Bb4 {[%clk 1:19:46]} 12. Kb1 {[%clk 1:10:38]}  Qb6 {[%clk 1:14:41]}
13. Bg2 {[%clk 1:06:38]}  Ne5 {[%clk 1:10:08]} 14. Qe2 {[%clk 1:05:22]}  Ng6 {[%clk 1:10:19]} 15. g5 {[%clk 0:57:24]}  Bxc3 {[%clk 1:06:19]}
16. Bxc3 {[%clk 0:57:30]}  Nd5 {[%clk 1:06:23]} 17. Qd2 {[%clk 0:47:20]}  Nxc3+ {[%clk 1:04:29]} 18. Qxc3 {[%clk 0:47:47]}  Nf4 {[%clk 1:03:51]}
19. Be4 {[%clk 0:45:26]}  g6 {[%clk 0:58:47]} 20. Qf3 {[%clk 0:41:00]}  Qc7 {[%clk 0:59:05]} 21. c4 {[%clk 0:40:45]}  Kb8 {[%clk 0:55:18]}
22. Rd2 {[%clk 0:26:01]}  h6 {[%clk 0:53:35]} 23. gxh6 {[%clk 0:24:35]}  f5 {[%clk 0:53:14]} 24. Bc2 {[%clk 0:24:40]}  Rxh6 {[%clk 0:52:39]}
25. h4 {[%clk 0:23:28]}  Rdh8 {[%clk 0:49:19]} 26. Qg3 {[%clk 0:23:44]}  g5 {[%clk 0:47:05]} 27. h5 {[%clk 0:21:14]}  Rxh5 {[%clk 0:46:38]}
28. Rxh5 {[%clk 0:21:42]}  Rxh5 {[%clk 0:46:55]} 29. Rd1 {[%clk 0:22:01]}  g4 {[%clk 0:46:27]} 30. Qa3 {[%clk 0:21:39]}  Rh8 {[%clk 0:39:55]}
31. Qe3 {[%clk 0:19:38]}  Qd6 {[%clk 0:35:10]} 32. a3 {[%clk 0:18:18]}  a6 {[%clk 0:34:05]} 33. Ka2 {[%clk 0:18:22]}  Rh3 {[%clk 0:33:29]}
34. Qe1 {[%clk 0:18:37]}  Rf3 {[%clk 0:31:13]} 35. Bb3 {[%clk 0:15:35]}  Nd3 {[%clk 0:29:03]} 36. Qe2 {[%clk 0:11:53]}  Qxd4 {[%clk 0:28:58]}
37. c5 {[%clk 0:12:15]}  e5 {[%clk 0:29:01]} 0-1